fUST/lending_fUST_20250419
["ID","MTS","AMOUNT","RATE_DAILY","PERIOD"]
[358385223,1745045439582,-151.0,0.00021714,2]
[358385224,1745045439592,-151.0,0.00021714,2]
[358385225,1745045439602,-606.932865,0.00021714,2]
[358385226,1745045439612,-606.932865,0.00021714,2]
[358385227,1745045439624,-606.932865,0.00021714,2]
[358385228,1745045439634,-15.86841923,0.00021714,2]
[358385229,1745045439673,-591.06444577,0.00021714,2]
[358385230,1745045439685,-307.68208,0.00021714,2]
[358385231,1745045439695,-307.68208,0.00021714,2]
[358385232,1745045439705,-307.68208,0.00021714,2]
[358385233,1745045439714,-307.68208,0.00021714,2]
[358385234,1745045439725,-151.0,0.00021714,2]
[358385235,1745045439735,-605.345336,0.00021714,2]
[358385236,1745045439744,-605.345336,0.00021714,2]
[358385237,1745045439757,-605.345336,0.00021714,2]
[358385238,1745045439768,-605.345336,0.00021714,2]
[358385239,1745045439777,-151.0,0.00021714,2]
[358385240,1745045439787,-301.22438,0.00021714,2]
[358385241,1745045439797,-151.0,0.00021714,2]
[358385242,1745045439806,-253.119056,0.00021714,2]
[358385243,1745045439816,-253.119056,0.00021714,2]
[358385244,1745045439826,-151.0,0.00021714,2]
[358385245,1745045439836,-153.788498,0.00021714,2]
[358385246,1745045439845,-151.0,0.00021714,2]
[358385247,1745045439855,-151.0,0.00021714,2]
[358385248,1745045439865,-151.0,0.00021714,2]
[358385249,1745045439874,-708.0,0.00021728,2]
[358385250,1745045439884,-544.0,0.00021728,2]
[358385251,1745045439893,-402.0,0.00021728,2]
[358385252,1745045439903,-500.0,0.00021773,2]
[358385253,1745045439913,-500.0,0.00021773,2]
[358385254,1745045439923,-500.0,0.00021773,2]
[358385255,1745045439932,-383.49712216,0.00021773,2]
[358385258,1745045441144,-118.73786816,0.00021773,2]
[358385259,1745045441155,-201.16569191,0.00021773,2]
[358385260,1745045441165,-437.02320824,0.00021773,2]
[358385261,1745045441348,-500.0,0.00021773,2]
[358385262,1745045441360,-500.0,0.00021773,2]
[358385263,1745045441370,-253.119056,0.00021773,2]
[358385264,1745045441380,-253.119056,0.00021773,2]
[358385265,1745045441390,-151.0,0.00021773,2]
[358385266,1745045441399,-151.0,0.00021773,2]
[358385267,1745045441409,-151.0,0.00021773,2]
[358385268,1745045441419,-151.0,0.00021773,2]
[358385269,1745045441429,-420.4931809,0.00021797,2]
[358385270,1745045441439,-160.0,0.00021797,2]
[358385271,1745045441449,-160.0,0.00021798,2]
[358385272,1745045441459,-151.0,0.00021813,2]
[358385273,1745045441468,-151.0,0.00021813,2]
[358385274,1745045441478,-151.0,0.00021813,2]
[358385275,1745045441488,-151.0,0.00021813,2]
[358385276,1745045441498,-151.0,0.00021813,2]
[358385277,1745045441507,-220.467288,0.00021813,2]
[358385278,1745045441517,-151.0,0.00021813,2]
[358385279,1745045441526,-151.0,0.00021813,2]
[358385280,1745045441536,-151.0,0.00021817,2]
[358385281,1745045441545,-200.0,0.000219,2]
[358385282,1745045441555,-200.0,0.000219,2]
[358385283,1745045441564,-1827.77,0.0002191,20]
[358385284,1745045441573,-330.21853896,0.00021914,2]
[358385285,1745045441583,-151.0,0.00021915,2]
[358385286,1745045441592,-151.0,0.00021915,2]
[358385287,1745045441602,-453.067084,0.00021915,2]
[358385288,1745045441611,-151.0,0.00021915,2]
[358385289,1745045441621,-606.932865,0.00021915,2]
[358385290,1745045441630,-606.932865,0.00021915,2]
[358385291,1745045441640,-240.24186878,0.00021915,2]
[358385292,1745045441688,-67.44021122,0.00021915,2]
[358385293,1745045441698,-307.68208,0.00021915,2]
[358385294,1745045441707,-151.0,0.00021915,2]
[358385295,1745045441716,-605.345336,0.00021915,2]
[358385296,1745045441727,-605.345336,0.00021915,2]
[358385297,1745045441736,-151.0,0.00021915,2]
[358385298,1745045441747,-48.86670627,0.00021915,2]
[358385307,1745045443768,-102.13329373,0.00021915,2]
[358385308,1745045443778,-151.0,0.00021915,2]
[358385309,1745045443787,-253.119056,0.00021915,2]
[358385310,1745045443796,-253.119056,0.00021915,2]
[358385311,1745045443806,-151.0,0.00021915,2]
[358385312,1745045443815,-151.0,0.00021915,2]
[358385313,1745045443824,-151.0,0.00021915,2]
[358385314,1745045443833,-4290.04221887,0.00021915,2]
[358385315,1745045443844,-2020.91219939,0.00021915,2]
[358385316,1745045443856,-536.92244762,0.00021915,2]
[358385317,1745045443867,-448.03818501,0.00021915,2]
[358385318,1745045443878,-6385.08448874,0.00021915,2]
[358385325,1745045446762,-8875.67087687,0.00021915,2]
[358385326,1745045446879,-6748.32993845,0.00021915,2]
[358385871,1745046631842,-10006.95903102,0.00021098,2]
[358385872,1745046631853,-300.0,0.00021099,2]
[358385873,1745046631862,-1000.0,0.000211,2]
[358385874,1745046631872,-1000.0,0.000211,2]
[358385875,1745046631882,-1000.0,0.000211,2]
[358385876,1745046631891,-1000.0,0.000211,2]
[358385877,1745046631901,-1000.0,0.000211,2]
[358385878,1745046631911,-1000.0,0.000211,2]
[358385879,1745046631921,-1000.0,0.000211,2]
[358385880,1745046631931,-1000.0,0.000211,2]
[358385881,1745046631941,-1000.0,0.000211,2]
[358385882,1745046631951,-1000.0,0.000211,2]
[358385883,1745046631960,-160.0,0.00021468,2]
[358385884,1745046631970,-629.2366586,0.00021697,2]
[358385885,1745046631979,-230.16010682,0.00021716,2]
[358385886,1745046631989,-150.168,0.00021728,2]
[358385887,1745046631999,-708.0,0.00021728,2]
[358385888,1745046632009,-536.584,0.00021728,2]
[358385889,1745046632020,-402.0,0.00021728,2]
[358385890,1745046632029,-188.66764088,0.00021797,2]
[358385891,1745046632039,-335.57904597,0.00021813,2]
[358385892,1745046632049,-11798.85273522,0.00021814,2]
[358385893,1745046632058,-404.32477797,0.00021816,2]
[358385894,1745046632068,-500.0,0.00021816,2]
[358385895,1745046632078,-500.0,0.00021816,2]
[358385896,1745046632087,-354.92860253,0.00021816,2]
[358385897,1745046632097,-8287.87684879,0.00021817,2]
[358385912,1745046638004,-1475.53809944,0.00020907,2]
[358385913,1745046638037,-254.63721526,0.00020907,2]
[358385914,1745046638046,-94490.53446467,0.00021817,2]
[358385915,1745046638068,-7645.03307382,0.00021817,2]
[358385924,1745046640199,-479.93791128,0.00021817,2]
[358385925,1745046640211,-3641.70649603,0.00021817,2]
[358385981,1745047711937,648.62914659,0.000176,2]
[358386015,1745047832061,-173.3701663,0.000189,2]
[358386016,1745047832072,-250.0,0.00020838,2]
[358386017,1745047832082,-568.3643501,0.00020851,2]
[358386018,1745047832093,-503.6,0.00021648,15]
[358386019,1745047832102,-597.7748257,0.00021697,2]
[358386020,1745047832112,-643.90653381,0.00021717,2]
[358386021,1745047832123,-160.0,0.00021801,2]
[358386022,1745047832133,-559.81558633,0.00021816,2]
[358386023,1745047832143,-159.3145048,0.00021866,2]
[358386024,1745047832152,-160.0,0.00021872,2]
[358386025,1745047832162,-839.40992179,0.00021872,2]
[358386026,1745047832172,-408.59715912,0.00021872,2]
[358386027,1745047832181,-300.0,0.00021899,2]
[358386028,1745047832191,-300.0,0.00021899,2]
[358386029,1745047832201,-200.0,0.000219,2]
[358386030,1745047832210,-200.0,0.000219,2]
[358386031,1745047832220,-151.0,0.000219,2]
[358386032,1745047832229,-288.523887,0.000219,2]
[358386033,1745047832239,-153.0,0.000219,2]
[358386034,1745047832249,-310.6546624,0.000219,2]
[358386035,1745047832259,-151.0,0.000219,2]
[358386036,1745047832269,-151.0,0.000219,2]
[358386037,1745047832278,-1109.97319757,0.000219,3]
[358386038,1745047832287,-151.0,0.00021904,2]
[358386039,1745047832296,-207.4,0.00021904,2]
[358386040,1745047832305,-94.16521989,0.00021914,2]
[358386041,1745047832317,-405.83478011,0.00021914,2]
[358386042,1745047832327,-344.49900159,0.00021914,2]
[358386043,1745047832504,-500.0,0.00021914,2]
[358386044,1745047832515,-474.87614243,0.00021914,2]
[358386045,1745047832525,-500.0,0.00021914,2]
[358386046,1745047832535,-500.0,0.00021914,2]
[358386047,1745047832545,-500.0,0.00021914,2]
[358386048,1745047832555,-443.92565366,0.00021914,2]
[358386049,1745047832565,-167.694079,0.00021915,2]
[358386050,1745047832575,-151.0,0.00021915,2]
[358386051,1745047832585,-151.0,0.00021915,2]
[358386052,1745047832595,-151.0,0.00021915,2]
[358386053,1745047832604,-151.0,0.00021915,2]
[358386054,1745047832614,-199.92219085,0.00021915,2]
[358386055,1745047832623,-24669.14246135,0.00021915,2]
[358386056,1745047832633,-283.02734458,0.00021916,2]
[358386057,1745047832642,-500.0,0.00021916,2]
[358386058,1745047832651,-500.0,0.00021916,2]
[358386059,1745047832661,-500.0,0.00021916,2]
[358386060,1745047832670,-500.0,0.00021916,2]
[358386061,1745047832679,-500.0,0.00021916,2]
[358386062,1745047832688,-500.0,0.00021916,2]
[358386063,1745047832698,-500.0,0.00021916,2]
[358386064,1745047832708,-500.0,0.00021916,2]
[358386065,1745047832718,-500.0,0.00021916,2]
[358386066,1745047832728,-500.0,0.00021916,2]
[358386067,1745047832739,-508.65903727,0.00021916,2]
[358386068,1745047832752,-219.11840652,0.00021916,2]
[358386069,1745047832762,-500.0,0.00021916,2]
[358386070,1745047832772,-500.0,0.00021916,2]
[358386071,1745047832782,-500.0,0.00021916,2]
[358386072,1745047832791,-500.0,0.00021916,2]
[358386073,1745047832801,-500.0,0.00021916,2]
[358386074,1745047832810,-132.31727208,0.00021916,2]
[358386078,1745047838118,-814.71702905,0.00021817,2]
[358386079,1745047838129,-367.68272792,0.00021916,2]
[358386080,1745047838138,-500.0,0.00021916,2]
[358386081,1745047838148,-450.0,0.00021916,2]
[358386082,1745047838158,-839.40992179,0.00021917,3]
[358386083,1745047838167,-3767.77984632,0.00021917,2]
[358386084,1745047838177,-8957.91657936,0.00021917,3]
[358386085,1745047838189,-2224.76465644,0.00021917,3]
[358386086,1745047838199,-392.60096015,0.00021917,2]
[358386087,1745047838209,-723.24,0.00021917,2]
[358386088,1745047838218,-500.0,0.00021917,2]
[358386089,1745047838228,-174.796344,0.00021917,2]
[358386090,1745047838237,-500.0,0.00021917,2]
[358386091,1745047838247,-500.0,0.00021917,2]
[358386093,1745047838257,-500.0,0.00021917,2]
[358386094,1745047838267,-500.0,0.00021917,2]
[358386095,1745047838276,-794.26,0.00021917,2]
[358386096,1745047838286,-500.0,0.00021917,2]
[358386097,1745047838295,-500.0,0.00021917,2]
[358386098,1745047838305,-500.0,0.00021917,2]
[358386099,1745047838315,-500.0,0.00021917,2]
[358386100,1745047838324,-730.19,0.00021917,2]
[358386101,1745047838334,-500.0,0.00021917,2]
[358386102,1745047838344,-500.0,0.00021917,2]
[358386103,1745047838353,-500.0,0.00021917,2]
[358386104,1745047838363,-500.0,0.00021917,2]
[358386105,1745047838372,-500.0,0.00021917,2]
[358386106,1745047838382,-500.0,0.00021917,2]
[358386107,1745047838391,-500.0,0.00021917,2]
[358386108,1745047838400,-500.0,0.00021917,2]
[358386109,1745047838410,-500.0,0.00021917,2]
[358386110,1745047838419,-500.0,0.00021917,2]
[358386111,1745047838428,-500.0,0.00021917,2]
[358386112,1745047838438,-500.0,0.00021917,2]
[358386113,1745047838448,-510.57,0.00021917,2]
[358386114,1745047838458,-500.0,0.00021917,2]
[358386115,1745047838468,-381.67314836,0.00021917,2]
[358386116,1745047838479,-500.0,0.00021917,2]
[358386117,1745047838489,-500.0,0.00021917,2]
[358386118,1745047838499,-500.0,0.00021917,2]
[358386119,1745047838510,-500.0,0.00021917,2]
[358386120,1745047838520,-500.0,0.00021917,2]
[358386121,1745047838532,-500.0,0.00021917,2]
[358386122,1745047838543,-585.96,0.00021917,2]
[358386123,1745047838555,-756.55,0.00021917,2]
[358386124,1745047838567,-500.0,0.00021917,2]
[358386125,1745047838576,-514.74,0.00021917,2]
[358386126,1745047838586,-500.0,0.00021917,2]
[358386127,1745047838596,-435.51740479,0.00021917,2]
[358386128,1745047838606,-500.0,0.00021917,2]
[358386129,1745047838616,-500.0,0.00021917,2]
[358386130,1745047838626,-703.75,0.00021917,2]
[358386131,1745047838635,-29.10063517,0.00021917,2]
[358386135,1745047840311,-678.67393402,0.00021917,2]
[358386146,1745047843235,-1248.71543081,0.00021917,2]
[358386147,1745047843245,-205.98456917,0.00021917,2]
[358386158,1745047846054,-294.01543083,0.00021917,2]
[358386159,1745047846064,-387.90925117,0.00021917,2]
[358386189,1745049032100,-303.43263409,0.000188,2]
[358386190,1745049032110,-81.51218788,0.000188,2]
[358386191,1745049032122,-583.5404112,0.000188,2]
[358386192,1745049032132,-1013.0323373,0.00020763,2]
[358386193,1745049032142,-300.0,0.00020773,2]
[358386194,1745049032152,-300.0,0.00020773,2]
[358386195,1745049032161,-1701.70755948,0.00020774,2]
[358386196,1745049032173,-6923.89731152,0.00020774,2]
[358386197,1745049032183,-292.25928757,0.00021601,2]
[358386198,1745049032193,-292.25928757,0.00021626,2]
[358386199,1745049032203,-292.25928757,0.00021651,2]
[358386200,1745049032212,-292.25928757,0.00021675,2]
[358386201,1745049032223,-14810.07450574,0.00021675,2]
[358386202,1745049032235,-10353.98876551,0.00021675,2]
[358386203,1745049032245,-567.8860844,0.00021697,2]
[358386204,1745049032255,-500.0,0.000217,2]
[358386205,1745049032265,-500.0,0.000217,2]
[358386206,1745049032278,-500.0,0.000217,2]
[358386207,1745049032288,-500.0,0.000217,2]
[358386208,1745049032298,-500.0,0.000217,2]
[358386209,1745049032308,-500.0,0.000217,2]
[358386210,1745049032319,-500.0,0.000217,2]
[358386211,1745049032328,-272.64695517,0.000217,2]
[358386212,1745049032338,-500.0,0.000217,2]
[358386213,1745049032349,-453.97818207,0.000217,2]
[358386214,1745049032359,-500.0,0.000217,2]
[358386215,1745049032369,-500.0,0.000217,2]
[358386216,1745049032379,-500.0,0.000217,2]
[358386217,1745049032389,-500.0,0.000217,2]
[358386218,1745049032398,-500.0,0.000217,2]
[358386219,1745049032408,-500.0,0.000217,2]
[358386220,1745049032418,-500.0,0.000217,2]
[358386221,1745049032428,-500.0,0.000217,2]
[358386222,1745049032438,-500.0,0.000217,2]
[358386223,1745049032448,-500.0,0.000217,2]
[358386224,1745049032458,-500.0,0.000217,2]
[358386225,1745049032467,-500.0,0.000217,2]
[358386226,1745049032477,-500.0,0.000217,2]
[358386227,1745049032487,-464.5248717,0.000217,2]
[358386228,1745049032498,-500.0,0.000217,2]
[358386229,1745049032507,-500.0,0.000217,2]
[358386230,1745049032517,-500.0,0.000217,2]
[358386231,1745049032527,-500.0,0.000217,2]
[358386232,1745049032537,-500.0,0.000217,2]
[358386233,1745049032546,-500.0,0.000217,2]
[358386234,1745049032556,-500.0,0.000217,2]
[358386235,1745049032566,-500.0,0.000217,2]
[358386236,1745049032575,-500.0,0.000217,2]
[358386237,1745049032584,-500.0,0.000217,2]
[358386238,1745049032594,-500.0,0.000217,2]
[358386239,1745049032604,-500.0,0.000217,2]
[358386240,1745049032614,-500.0,0.000217,2]
[358386241,1745049032624,-500.0,0.000217,2]
[358386242,1745049032633,-500.0,0.000217,2]
[358386243,1745049032643,-500.0,0.000217,2]
[358386244,1745049032653,-500.0,0.000217,2]
[358386245,1745049032662,-500.0,0.000217,2]
[358386246,1745049032672,-500.0,0.000217,2]
[358386247,1745049032682,-500.0,0.000217,2]
[358386248,1745049032691,-500.0,0.000217,2]
[358386249,1745049032700,-500.0,0.000217,2]
[358386250,1745049032710,-500.0,0.000217,2]
[358386251,1745049032720,-500.0,0.000217,2]
[358386252,1745049032730,-500.0,0.000217,2]
[358386253,1745049032740,-500.0,0.000217,2]
[358386254,1745049032749,-500.0,0.000217,2]
[358386255,1745049032758,-500.0,0.000217,2]
[358386256,1745049032768,-500.0,0.000217,2]
[358386257,1745049032777,-500.0,0.000217,2]
[358386258,1745049032786,-500.0,0.000217,2]
[358386259,1745049032795,-500.0,0.000217,2]
[358386260,1745049032805,-500.0,0.000217,2]
[358386261,1745049032815,-499.99999999,0.000217,2]
[358386262,1745049032824,-500.0,0.000217,2]
[358386263,1745049032834,-500.0,0.000217,2]
[358386264,1745049032843,-500.0,0.000217,2]
[358386265,1745049032853,-500.0,0.000217,2]
[358386266,1745049032862,-500.0,0.000217,2]
[358386267,1745049032872,-500.0,0.000217,2]
[358386268,1745049032881,-500.0,0.000217,2]
[358386269,1745049032891,-500.0,0.000217,2]
[358386270,1745049032900,-500.0,0.000217,2]
[358386271,1745049032909,-500.0,0.000217,2]
[358386272,1745049032918,-500.0,0.000217,2]
[358386273,1745049032928,-500.0,0.000217,2]
[358386274,1745049032938,-500.0,0.000217,2]
[358386275,1745049032948,-500.0,0.000217,2]
[358386276,1745049032957,-500.0,0.000217,2]
[358386277,1745049032967,-500.0,0.000217,2]
[358386278,1745049032977,-500.0,0.000217,2]
[358386279,1745049032986,-500.0,0.000217,2]
[358386280,1745049032995,-500.0,0.000217,2]
[358386281,1745049033005,-450.0,0.000217,2]
[358386282,1745049033015,-500.0,0.000217,2]
[358386283,1745049033024,-500.0,0.000217,2]
[358386284,1745049033034,-500.0,0.000217,2]
[358386285,1745049033044,-500.0,0.000217,2]
[358386286,1745049033053,-500.0,0.000217,2]
[358386287,1745049033062,-500.0,0.000217,2]
[358386288,1745049033072,-500.0,0.000217,2]
[358386289,1745049033081,-200.0,0.000217,2]
[358386290,1745049033090,-292.25928757,0.000217,2]
[358386291,1745049033100,-17316.37718214,0.000217,2]
[358386292,1745049033109,-434.419837,0.00021773,2]
[358386293,1745049033118,-500.0,0.00021773,2]
[358386294,1745049033128,-501.98613005,0.00021773,2]
[358386295,1745049033137,-500.0,0.00021773,2]
[358386296,1745049033147,-500.0,0.00021773,2]
[358386297,1745049033157,-500.0,0.00021773,2]
[358386298,1745049033167,-501.95102374,0.00021773,2]
[358386299,1745049033177,-501.84411396,0.00021773,2]
[358386300,1745049033187,-500.0,0.00021773,2]
[358386301,1745049033197,-500.0,0.00021773,2]
[358386302,1745049033207,-500.0,0.00021773,2]
[358386303,1745049033216,-500.0,0.00021773,2]
[358386304,1745049033226,-529.08762838,0.00021773,2]
[358386305,1745049033235,-500.0,0.00021773,2]
[358386306,1745049033244,-500.0,0.00021773,2]
[358386307,1745049033254,-500.0,0.00021773,2]
[358386308,1745049033264,-226.574926,0.00021773,2]
[358386309,1745049033276,-500.0,0.00021773,2]
[358386310,1745049033287,-500.0,0.00021773,2]
[358386311,1745049033296,-300.0,0.00021773,2]
[358386312,1745049033306,-500.0,0.00021773,2]
[358386313,1745049033315,-500.0,0.00021773,2]
[358386314,1745049033325,-506.89444511,0.00021773,2]
[358386315,1745049033335,-500.0,0.00021773,2]
[358386316,1745049033345,-151.0,0.00021773,2]
[358386317,1745049033354,-151.0,0.00021773,2]
[358386318,1745049033364,-364.159719,0.00021773,2]
[358386319,1745049033373,-364.159719,0.00021773,2]
[358386320,1745049033383,-500.0,0.00021797,2]
[358386321,1745049033393,-500.0,0.00021797,2]
[358386322,1745049033403,-500.0,0.00021797,2]
[358386323,1745049033414,-500.0,0.00021797,2]
[358386324,1745049033423,-500.0,0.00021797,2]
[358386325,1745049033433,-500.0,0.00021797,2]
[358386326,1745049033443,-500.0,0.00021797,2]
[358386327,1745049033453,-500.0,0.00021797,2]
[358386328,1745049033463,-500.0,0.00021797,2]
[358386329,1745049033472,-500.0,0.00021797,2]
[358386330,1745049033482,-500.0,0.00021797,2]
[358386331,1745049033491,-500.0,0.00021797,2]
[358386332,1745049033501,-500.0,0.00021797,2]
[358386333,1745049033510,-500.0,0.00021797,2]
[358386334,1745049033520,-500.0,0.00021797,2]
[358386335,1745049033529,-500.0,0.00021797,2]
[358386336,1745049033539,-342.82,0.00021797,2]
[358386337,1745049033548,-385.107021,0.00021797,2]
[358386338,1745049033558,-385.107021,0.00021797,2]
[358386339,1745049033567,-839.40992179,0.00021798,3]
[358386340,1745049033576,-160.82567716,0.00021799,2]
[358386341,1745049033586,-1785.20038046,0.000218,3]
[358386342,1745049033595,-12563.84564139,0.000218,2]
[358386343,1745049033609,-42724.15435861,0.000218,2]
[358386344,1745049033619,-151.0,0.000218,2]
[358386345,1745049033628,-151.0,0.000218,2]
[358386346,1745049033637,-151.0,0.000218,2]
[358386347,1745049033647,-151.0,0.000218,2]
[358386348,1745049033656,-151.0,0.000218,2]
[358386349,1745049033666,-233.503717,0.000218,2]
[358386350,1745049033675,-151.0,0.000218,2]
[358386351,1745049033684,-151.0,0.000218,2]
[358386352,1745049033693,-56210.07549225,0.000218,2]
[358386365,1745049038375,-500.0,0.00021699,2]
[358386366,1745049038386,-556.06132609,0.00021699,2]
[358386367,1745049038396,-198.1191412,0.00021699,2]
[358386368,1745049038408,-500.0,0.00021699,2]
[358386369,1745049038417,-500.0,0.00021699,2]
[358386370,1745049038428,-500.0,0.00021699,2]
[358386371,1745049038438,-500.0,0.00021699,2]
[358386372,1745049038448,-500.0,0.00021699,2]
[358386373,1745049038459,-500.0,0.00021699,2]
[358386374,1745049038468,-500.0,0.00021699,2]
[358386375,1745049038477,-500.0,0.00021699,2]
[358386376,1745049038487,-500.0,0.00021699,2]
[358386377,1745049038496,-500.0,0.00021699,2]
[358386378,1745049038505,-500.0,0.00021699,2]
[358386380,1745049038515,-173.68635294,0.00021699,2]
[358386381,1745049038525,-500.0,0.00021699,2]
[358386382,1745049038536,-500.0,0.00021699,2]
[358386383,1745049038546,-500.0,0.00021699,2]
[358386384,1745049038558,-13824.25186899,0.000217,3]
[358386385,1745049038568,-425.118273,0.00021773,2]
[358386386,1745049038578,-425.118273,0.00021773,2]
[358386387,1745049038588,-29087.52914518,0.000218,2]
[358386388,1745049038601,-8956.53795251,0.000218,2]
[358386389,1745049038612,-1057.75877963,0.000218,2]
[358386397,1745049043296,-151.0,0.00021797,2]
[358386398,1745049043306,-549.00052607,0.000218,2]
[358386432,1745050002351,7250.804345,0.0001801,2]
[358386442,1745050232259,-493.68616961,0.000187,2]
[358386443,1745050232270,-319.400921,0.00020598,2]
[358386444,1745050232282,-186.91290939,0.00020741,2]
[358386445,1745050232321,-113.08709061,0.00020741,2]
[358386446,1745050232331,-269.41290939,0.00020741,2]
[358386447,1745050232343,-30.58709061,0.00020741,2]
[358386448,1745050232353,-500.0,0.00020742,2]
[358386449,1745050232363,-500.0,0.00020742,2]
[358386450,1745050232374,-500.0,0.00020742,2]
[358386451,1745050232384,-500.0,0.00020742,2]
[358386452,1745050232394,-500.0,0.00020742,2]
[358386453,1745050232404,-500.0,0.00020742,2]
[358386454,1745050232415,-500.0,0.00020742,2]
[358386455,1745050232425,-500.0,0.00020742,2]
[358386456,1745050232434,-500.0,0.00020742,2]
[358386457,1745050232445,-500.0,0.00020742,2]
[358386458,1745050232455,-234.92284519,0.00020742,2]
[358386460,1745050232464,-500.0,0.00020742,2]
[358386462,1745050232474,-500.0,0.00020742,2]
[358386464,1745050232484,-500.0,0.00020742,2]
[358386466,1745050232494,-500.0,0.00020742,2]
[358386468,1745050232504,-500.0,0.00020742,2]
[358386469,1745050232514,-500.0,0.00020742,2]
[358386470,1745050232524,-500.0,0.00020742,2]
[358386471,1745050232534,-548.00333715,0.00020742,2]
[358386472,1745050232544,-500.0,0.00020742,2]
[358386473,1745050232554,-500.0,0.00020742,2]
[358386474,1745050232564,-500.0,0.00020742,2]
[358386475,1745050232574,-500.0,0.00020742,2]
[358386476,1745050232584,-500.0,0.00020742,2]
[358386477,1745050232594,-500.0,0.00020742,2]
[358386478,1745050232604,-500.0,0.00020742,2]
[358386479,1745050232614,-500.0,0.00020742,2]
[358386480,1745050232624,-500.0,0.00020742,2]
[358386481,1745050232633,-500.0,0.00020742,2]
[358386482,1745050232643,-500.0,0.00020742,2]
[358386483,1745050232653,-500.0,0.00020742,2]
[358386484,1745050232663,-500.0,0.00020742,2]
[358386485,1745050232673,-500.0,0.00020742,2]
[358386486,1745050232683,-500.0,0.00020742,2]
[358386487,1745050232692,-500.0,0.00020742,2]
[358386488,1745050232702,-500.0,0.00020742,2]
[358386489,1745050232711,-500.0,0.00020742,2]
[358386490,1745050232721,-500.0,0.00020742,2]
[358386491,1745050232732,-472.0003708,0.00020742,2]
[358386492,1745050232741,-500.0,0.00020742,2]
[358386493,1745050232751,-500.0,0.00020742,2]
[358386494,1745050232760,-500.0,0.00020742,2]
[358386495,1745050232769,-500.0,0.00020742,2]
[358386496,1745050232779,-500.0,0.00020742,2]
[358386497,1745050232791,-1232.32,0.00020743,2]
[358386498,1745050232802,-1232.32,0.00020743,2]
[358386499,1745050232816,-1232.32,0.00020743,2]
[358386500,1745050232826,-1232.32,0.00020743,2]
[358386501,1745050232835,-1232.32,0.00020743,2]
[358386502,1745050232847,-1232.32,0.00020743,2]
[358386503,1745050232858,-1232.32,0.00020743,2]
[358386504,1745050232870,-1232.32,0.00020743,2]
[358386505,1745050232882,-1232.32,0.00020743,2]
[358386506,1745050232894,-1232.32,0.00020743,2]
[358386507,1745050232906,-1232.32,0.00020743,2]
[358386508,1745050232916,-1232.32,0.00020743,2]
[358386509,1745050232926,-1232.32,0.00020743,2]
[358386510,1745050232935,-1232.32,0.00020743,2]
[358386511,1745050232945,-1232.32,0.00020743,2]
[358386512,1745050232954,-1232.32,0.00020743,2]
[358386513,1745050232964,-1232.32,0.00020743,2]
[358386514,1745050232975,-1232.32,0.00020743,2]
[358386515,1745050232986,-1232.32,0.00020743,2]